Workbook

Sheet 2단계 지번안내
A1: ■ 광교 2단계 준공지구 대상필지별 확정면적표
B3: ※ 준공정산기준일 : 2013.1.30일 준공공고일 기준
A4: 연번 | B4: 동명 | C4: 가지번 | D4: 위치 | E4: 계약면적 | F4: 확정지번 | G4: 지목 | H4: 확정면적 | I4: 면적차
A5: 1 | B5: 이의동 | C5: 위5 | E5: 2058 | F5: 832-4 | G5: 주유소용지 | H5: 1504 | I5: =H10-E5 -> 10.6
A6: 2 | F6: 1241 | G6: 주유소용지 | H6: 421.8
A7: 3 | F7: 1241-1 | G7: 주유소용지 | H7: 103.9
A8: 4 | F8: 1241-2 | G8: 주유소용지 | H8: 1.2
A9: 5 | F9: 1241-3 | G9: 주유소용지 | H9: 37.7
A10: 6 | F10: 소 계 | H10: =SUM(H5:H9) -> 2068.6
A11: 7 | C11: 위6 | E11: 3158 | F11: 432-1 | G11: 잡종지 | H11: 2276 | I11: =H15-E11 -> -19
A12: 8 | F12: 1241-4 | G12: 주유소용지 | H12: 91.4
A13: 9 | F13: 1241-5 | G13: 주유소용지 | H13: 17.2
A14: 10 | F14: 1241-6 | G14: 주유소용지 | H14: 754.4
A15: 11 | F15: 소 계 | H15: =SUM(H11:H14) -> 3139
A16: 12 | C16: F3 | D16: -1 | E16: 5740 | F16: 1185 | G16: 대 | H16: 5735.9 | I16: =H16-E16 -> -4.1
A17: 13 | D17: -2 | E17: 6554 | F17: 1185-1 | G17: 대 | H17: 6549 | I17: -5
A18: 14 | C18: 단독11-4 | E18: 1004 | F18: 1186 | G18: 대 | H18: 1004.6 | I18: 0.6
A19: 15 | C19: F2 | D19: -1 | E19: 3943 | F19: 1187 | G19: 대 | H19: 3943.1 | I19: 0.1
A20: 16 | D20: -2 | E20: 5908 | F20: 1187-1 | G20: 대 | H20: 5907.8 | I20: -0.2
A21: 17 | C21: F1 | E21: 6196 | F21: 1188 | G21: 대 | H21: 6195.4 | I21: -0.6
A22: 18 | C22: 단독11-1 | D22: -1 | E22: 568 | F22: 1190 | G22: 대 | H22: 567.6 | I22: -0.4
A23: 19 | D23: -2 | E23: 621 | F23: 1190-1 | G23: 대 | H23: 620.5 | I23: -0.5
A24: 20 | D24: -3 | E24: 565 | F24: 1190-2 | G24: 대 | H24: 564.6 | I24: -0.4
A25: 21 | D25: -4 | E25: 349 | F25: 1190-3 | G25: 대 | H25: 347.9 | I25: -1.1
A26: 22 | D26: -5 | E26: 348 | F26: 1190-4 | G26: 대 | H26: 347 | I26: -1
A27: 23 | D27: -6 | E27: 394 | F27: 1190-5 | G27: 대 | H27: 393.4 | I27: -0.6
A28: 24 | D28: -7 | E28: 405 | F28: 1190-6 | G28: 대 | H28: 404.7 | I28: -0.3
A29: 25 | D29: -8 | E29: 478 | F29: 1190-7 | G29: 대 | H29: 478.4 | I29: 0.4
A30: 26 | D30: -9 | E30: 410 | F30: 1190-8 | G30: 대 | H30: 410 | I30: 0
A31: 27 | D31: -10 | E31: 2515 | F31: 1190-9 | G31: 대 | H31: 2516.5 | I31: 1.5
A32: 28 | C32: 단독11-2 | D32: -1 | E32: 293 | F32: 1191 | G32: 대 | H32: 242 | I32: -51
A33: 29 | D33: -2 | E33: 302 | F33: 1191-1 | G33: 대 | H33: 302.1 | I33: 0.1
A34: 30 | D34: -3 | E34: 279 | F34: 1191-2 | G34: 대 | H34: 279 | I34: 0
A35: 31 | D35: -4 | E35: 238 | F35: 1191-3 | G35: 대 | H35: 238.1 | I35: 0.1
A36: 32 | C36: 주45 | E36: 236 | F36: 1192 | G36: 주차장 | H36: 235.4 | I36: -0.6
A37: 33 | C37: 단독11-2 | D37: -5 | E37: 223 | F37: 1193 | G37: 대 | H37: 222.2 | I37: -0.8
A38: 34 | D38: -6 | E38: 252 | F38: 1193-1 | G38: 대 | H38: 251.4 | I38: -0.6
A39: 35 | D39: -7 | E39: 252 | F39: 1193-2 | G39: 대 | H39: 251.4 | I39: -0.6
A40: 36 | D40: -8 | E40: 263 | F40: 1193-3 | G40: 대 | H40: 262.8 | I40: -0.2
A41: 37 | C41: 단독11-3 | D41: -4 | E41: 241 | F41: 1194 | G41: 대 | H41: 240 | I41: -1
A42: 38 | D42: -3 | E42: 252 | F42: 1194-1 | G42: 대 | H42: 252 | I42: 0
A43: 39 | D43: -2 | E43: 252 | F43: 1194-2 | G43: 대 | H43: 252 | I43: 0
A44: 40 | D44: -1 | E44: 226 | F44: 1194-3 | G44: 대 | H44: 226.1 | I44: 0.1
A45: 41 | C45: 주46 | E45: 160 | F45: 1195 | G45: 주차장 | H45: 159.2 | I45: -0.8
A46: 42 | C46: 단독11-3 | D46: -5 | E46: 252 | F46: 1196 | G46: 대 | H46: 251.6 | I46: -0.4
A47: 43 | D47: -6 | E47: 269 | F47: 1196-1 | G47: 대 | H47: 268.6 | I47: -0.4
A48: 44 | D48: -7 | E48: 276 | F48: 1196-2 | G48: 대 | H48: 275.6 | I48: -0.4
A49: 45 | C49: 주26 | E49: 1304 | F49: 1220-1 | G49: 주차장 | H49: 1230.6 | I49: -73.4
A50: 46 | C50: 근생12-1 | D50: -1 | E50: 531 | F50: 1221 | G50: 대 | H50: 530.5 | I50: -0.5
A51: 47 | D51: -2 | E51: 520 | F51: 1221-1 | G51: 대 | H51: 519.8 | I51: -0.2
A52: 48 | D52: -3 | E52: 520 | F52: 1221-2 | G52: 대 | H52: 519.6 | I52: -0.4
A53: 49 | D53: -4 | E53: 507 | F53: 1221-3 | G53: 대 | H53: 506.6 | I53: -0.4
A54: 50 | C54: 근생12-2 | D54: -1 | E54: 674 | F54: 1222 | G54: 대 | H54: 674.6 | I54: 0.6
A55: 51 | D55: -2 | E55: 693 | F55: 1222-1 | G55: 대 | H55: 693.3 | I55: 0.3
A56: 52 | D56: -3 | E56: 688 | F56: 1222-2 | G56: 대 | H56: 688.4 | I56: 0.4
A57: 53 | D57: -4 | E57: 595 | F57: 1222-3 | G57: 대 | H57: 595.1 | I57: 0.1
A58: 54 | D58: -5 | E58: 591 | F58: 1222-4 | G58: 대 | H58: 591.8 | I58: 0.8
A59: 55 | D59: -6 | E59: 564 | F59: 1222-5 | G59: 대 | H59: 564.3 | I59: 0.3
A60: 56 | C60: 주44 | E60: 1257 | F60: 1223 | G60: 주차장 | H60: 1255.4 | I60: -1.6
A61: 57 | C61: 집1 | E61: 31954 | F61: 1232 | G61: 잡종지 | H61: 31693.3 | I61: -260.7
A62: 58 | C62: 주47 | E62: 1744 | F62: 1233 | G62: 주차장 | H62: 1743.3 | I62: -0.7
A63: 59 | C63: 종27 | E63: 3544 | F63: 1234 | G63: 종교용지 | H63: 3539.5 | I63: -4.5
A64: 60 | C64: 문7 | E64: 3373 | F64: 1234-1 | G64: 대 | H64: 3369 | I64: -4
A65: 61 | C65: 전4 | E65: 625 | F65: 1235 | G65: 잡종지 | H65: 635.6 | I65: 10.6
A66: 62 | C66: 전2 | E66: 3722 | F66: 1237 | G66: 잡종지 | H66: 3714.8 | I66: -7.2
A67: 63 | C67: 단독1-3 | D67: -3 | E67: 270 | F67: 1242-2 | G67: 대 | H67: 270.1 | I67: 0.1
A68: 64 | D68: -2 | E68: 266 | F68: 1242-3 | G68: 대 | H68: 264.7 | I68: -1.3
A69: 65 | D69: -1 | E69: 294 | F69: 1242-4 | G69: 대 | H69: 293.2 | I69: -0.8
A70: 66 | C70: A31 | E70: 27025 | F70: 1252 | G70: 대 | H70: 27030.3 | I70: 5.3
A71: 67 | C71: 주28 | E71: 4702 | F71: 1252-2 | G71: 주차장 | H71: 4706.6 | I71: 4.6
A72: 68 | C72: A32 | E72: 5994 | F72: 1253 | G72: 대 | H72: 5990.1 | I72: -3.9
A73: 69 | C73: 근생3-1 | E73: 3318 | F73: 1254 | G73: 대 | H73: 3319.5 | I73: 1.5
A74: 70 | C74: 근생3-2 | E74: 1254 | F74: 1254-2 | G74: 대 | H74: 1255.5 | I74: 1.5
A75: 71 | C75: 업무1-2 | D75: -1 | E75: 1905 | F75: 1255 | G75: 대 | H75: 1906.7 | I75: 1.7
A76: 72 | D76: -2 | E76: 1065 | F76: 1255-1 | G76: 대 | H76: 1066.5 | I76: 1.5
A77: 73 | C77: 업무1-3 | E77: 1692 | F77: 1255-2 | G77: 대 | H77: 1691.4 | I77: -0.6
A78: 74 | C78: 주2 | E78: 1086 | F78: 1255-3 | G78: 주차장 | H78: 1082.8 | I78: -3.2
A79: 75 | C79: 업무1-4 | D79: 1-가 | E79: 989 | F79: 1256 | G79: 대 | H79: 990.1 | I79: 1.1
A80: 76 | D80: 4-나 | E80: 1055 | F80: 1256-1 | G80: 대 | H80: 1055.7 | I80: =H80-E80 -> 0.7
A81: 77 | D81: 4-가 | E81: 1026 | F81: 1256-2 | G81: 대 | H81: 1026.1 | I81: 0.1
A82: 78 | D82: 3-나 | E82: 1026 | F82: 1256-3 | G82: 대 | H82: 1026.1 | I82: 0.1
A83: 79 | D83: 3-가 | E83: 1069 | F83: 1256-4 | G83: 대 | H83: 1068.8 | I83: -0.2
A84: 80 | D84: 2 | E84: 1333 | F84: 1256-5 | G84: 대 | H84: 1333.1 | I84: 0.1
A85: 81 | D85: 1-나 | E85: 1033 | F85: 1256-6 | G85: 대 | H85: 1032.5 | I85: -0.5
A86: 82 | C86: 근생2-3 | D86: -1 | E86: 793 | F86: 1279 | G86: 대 | H86: 793.4 | I86: 0.4
A87: 83 | D87: -2 | E87: 583 | F87: 1279-1 | G87: 대 | H87: 583.3 | I87: 0.3
A88: 84 | C88: 도시1 | E88: 15986 | F88: 1281 | G88: 대 | H88: 15989 | I88: 3
A89: 85 | C89: 위3 | E89: 879 | F89: 1282 | G89: 주유소용지 | H89: 848.9 | I89: -30.1
A90: 86 | C90: 집2 | E90: 891 | F90: 1282-2 | G90: 잡종지 | H90: 881.9 | I90: -9.1
A91: 87 | C91: 도시13-6 | D91: -1 | E91: 3548 | F91: 1283 | G91: 대 | H91: 3546.4 | I91: -1.6
A92: 88 | D92: -2 | E92: 2640 | F92: 1283-1 | G92: 대 | H92: 2635.8 | I92: -4.2
A93: 89 | C93: 주49 | E93: 2624 | F93: 1283-2 | G93: 주차장 | H93: 2624 | I93: 0
A94: 90 | C94: 도시13-1 | D94: -1 | E94: 3826 | F94: 1283-3 | G94: 대 | H94: 3826 | I94: 0
A95: 91 | D95: -2 | E95: 3603 | F95: 1283-4 | G95: 대 | H95: 3600.2 | I95: -2.8
A96: 92 | D96: -3 | E96: 3086 | F96: 1283-5 | G96: 대 | H96: 3084.3 | I96: -1.7
A97: 93 | C97: 도시13-5 | D97: -1 | E97: 3688 | F97: 1284 | G97: 대 | H97: 3691.8 | I97: 3.8
A98: 94 | D98: -2 | E98: 2845 | F98: 1284-1 | G98: 대 | H98: 2847.6 | I98: 2.6
A99: 95 | C99: 도시13-4 | D99: -1 | E99: 2437 | F99: 1285 | G99: 대 | H99: 2437.5 | I99: 0.5
A100: 96 | D100: -2 | E100: 2691 | F100: 1285-1 | G100: 대 | H100: 2692.5 | I100: 1.5
A101: 97 | D101: -3 | E101: 3600 | F101: 1285-2 | G101: 대 | H101: 3599.9 | I101: -0.1
A102: 98 | D102: -5 | E102: 2618 | F102: 1285-3 | G102: 대 | H102: 2616.9 | I102: -1.1
A103: 99 | D103: -4 | E103: 2003 | F103: 1285-4 | G103: 대 | H103: 2002 | I103: -1
A104: 100 | C104: 도시13-2 | D104: -1 | E104: 4898 | F104: 1286 | G104: 대 | H104: 4897 | I104: -1
A105: 101 | D105: -2 | E105: 4705 | F105: 1286-1 | G105: 대 | H105: 4703.1 | I105: -1.9
A106: 102 | C106: 도시13-3 | D106: -1 | E106: 2655 | F106: 1287 | G106: 대 | H106: 2656.3 | I106: 1.3
A107: 103 | D107: -2 | E107: 2655 | F107: 1287-1 | G107: 대 | H107: 2655.4 | I107: 0.4
A108: 104 | D108: -3 | E108: 2259 | F108: 1287-2 | G108: 대 | H108: 2258.7 | I108: -0.3
A109: 105 | D109: -4 | E109: 2228 | F109: 1287-3 | G109: 대 | H109: 2229.6 | I109: 1.6
A110: 106 | C110: 도시7-2 | E110: 4182 | F110: 1355 | G110: 대 | H110: 4180.6 | I110: -1.4
A111: 107 | C111: 유4 | E111: 994 | F111: 1362 | G111: 학교용지 | H111: 994.5 | I111: 0.5
A112: 108 | C112: 주48 | E112: 1490 | F112: 1362-1 | G112: 주차장 | H112: 1490.3 | I112: 0.3
A113: 109 | C113: 도시7-1 | D113: -1 | E113: 3457 | F113: 1363 | G113: 대 | H113: 3456.2 | I113: -0.8
A114: 110 | D114: -2 | E114: 4189 | F114: 1363-1 | G114: 대 | H114: 4189.1 | I114: 0.1
A115: 111 | C115: 특수1 | E115: 15286 | F115: 1364 | G115: 학교용지 | H115: 15263.8 | I115: -22.2
A116: 112 | B116: 하동 | C116: 자1 | D116: -2 | E116: 15559 | F116: 1007 | G116: 주차장 | H116: 15604.3 | I116: 45.3
A117: 113 | D117: -1 | E117: 29362 | F117: 1007-1 | G117: 주차장 | H117: 29383.4 | I117: 21.4
A118: 114 | B118: 원천동 | C118: 대1 | E118: 101795 | F118: 48-9 | G118: 답 | H118: 945 | I118: =H139-E118 -> -298.1
A119: 115 | F119: 48-11 | G119: 답 | H119: 2877
A120: 116 | F120: 48-13 | G120: 답 | H120: 38
A121: 117 | F121: 49 | G121: 전 | H121: 627
A122: 118 | F122: 49-2 | G122: 전 | H122: 470
A123: 119 | F123: 49-3 | G123: 답 | H123: 16
A124: 120 | F124: 49-14 | G124: 임야 | H124: 10451
A125: 121 | F125: 49-15 | G125: 임야 | H125: 7636
A126: 122 | F126: 49-16 | G126: 임야 | H126: 7339
A127: 123 | F127: 49-17 | G127: 임야 | H127: 2626
A128: 124 | F128: 49-18 | G128: 임야 | H128: 16860
A129: 125 | F129: 49-19 | G129: 임야 | H129: 5306
A130: 126 | F130: 49-20 | G130: 임야 | H130: 33
A131: 127 | F131: 49-21 | G131: 임야 | H131: 5306
A132: 128 | F132: 49-22 | G132: 임야 | H132: 28463
A133: 129 | F133: 50-1 | G133: 전 | H133: 1217
A134: 130 | F134: 50-2 | G134: 전 | H134: 1319
A135: 131 | F135: 583 | G135: 학교용지 | H135: 3235.5
A136: 132 | F136: 583-1 | G136: 학교용지 | H136: 6435.4
A137: 133 | F137: 583-2 | G137: 학교용지 | H137: 198
A138: 134 | F138: 583-3 | G138: 학교용지 | H138: 99
A139: 135 | F139: 소 계 | H139: =SUM(H118:H138) -> 101496.9
A140: 136 | C140: 초4 | E140: 15974 | F140: 50-3 | G140: 전 | H140: 545 | I140: =H149-E140 -> 0.4
A141: 137 | F141: 51-5 | G141: 전 | H141: 463
A142: 138 | F142: 51-26 | G142: 임야 | H142: 9231
A143: 139 | F143: 51-27 | G143: 임야 | H143: 496
A144: 140 | F144: 51-28 | G144: 임야 | H144: 463
A145: 141 | F145: 51-29 | G145: 임야 | H145: 2988
A146: 142 | F146: 584 | G146: 학교용지 | H146: 453
A147: 143 | F147: 584-2 | G147: 학교용지 | H147: 968.8
A148: 144 | F148: 584-3 | G148: 학교용지 | H148: 366.6
A149: 145 | F149: 소 계 | H149: =SUM(H140:H148) -> 15974.4
A150: 146 | C150: 종13 | E150: 888 | F150: 58-1 | G150: 종교용지 | H150: 621 | I150: =H154-E150 -> 19.9
A151: 147 | F151: 58-2 | G151: 종교용지 | H151: 149
A152: 148 | F152: 560 | G152: 종교용지 | H152: 117.3
A153: 149 | F153: 560-1 | G153: 종교용지 | H153: 20.6
A154: 150 | F154: 소 계 | H154: =SUM(H150:H153) -> 907.9
A155: 151 | C155: 도시10-1 | D155: -2 | E155: 3447 | F155: 556 | G155: 대 | H155: 3449.3 | I155: =H155-E155 -> 2.3
A156: 152 | D156: -1 | E156: 10399 | F156: 557 | G156: 대 | H156: 10419.2 | I156: 20.2
A157: 153 | D157: -3 | E157: 2513 | F157: 558 | G157: 대 | H157: 2513.4 | I157: 0.4
A158: 154 | C158: 도시8 | E158: 4450 | F158: 559 | G158: 대 | H158: 4446.7 | I158: -3.3
A159: 155 | C159: 도시9-2 | D159: -1 | E159: 3282 | F159: 561 | G159: 대 | H159: 3264.7 | I159: -17.3
A160: 156 | D160: -2 | E160: 3238 | F160: 562 | G160: 대 | H160: 3236.8 | I160: -1.2
A161: 157 | C161: 도시9-2 | D161: -3 | E161: 3861 | F161: 563 | G161: 대 | H161: 3862 | I161: 1
A162: 158 | D162: -4 | E162: 4052 | F162: 564 | G162: 대 | H162: 4049.1 | I162: -2.9
A163: 159 | C163: 도시9-1 | D163: -1 | E163: 2714 | F163: 565 | G163: 대 | H163: 2715.9 | I163: 1.9
A164: 160 | D164: -2 | E164: 2332 | F164: 566 | G164: 대 | H164: 2333.8 | I164: 1.8
A165: 161 | D165: -3 | E165: 2495 | F165: 567 | G165: 대 | H165: 2497.4 | I165: 2.4
A166: 162 | C166: 도시10-2 | D166: -2 | E166: 2478 | F166: 568 | G166: 대 | H166: 2476.3 | I166: -1.7
A167: 163 | D167: -3 | E167: 1970 | F167: 568-1 | G167: 대 | H167: 1969.5 | I167: -0.5
A168: 164 | D168: -1 | E168: 7052 | F168: 569 | G168: 대 | H168: 7048.4 | I168: -3.6
A169: 165 | C169: 주13 | E169: 1189 | F169: 613 | G169: 주차장 | H169: 1185.4 | I169: -3.6
A170: 166 | C170: 단독4-6 | D170: -1 | E170: 270 | F170: 614 | G170: 대 | H170: 270.4 | I170: 0.4
A171: 167 | D171: -2 | E171: 278 | F171: 614-1 | G171: 대 | H171: 279 | I171: 1
A172: 168 | D172: -3 | E172: 299 | F172: 614-2 | G172: 대 | H172: 300.2 | I172: 1.2
A173: 169 | D173: -4 | E173: 319 | F173: 614-3 | G173: 대 | H173: 320.1 | I173: 1.1
A174: 170 | D174: -5 | E174: 315 | F174: 614-4 | G174: 대 | H174: 316.4 | I174: 1.4
A175: 171 | D175: -6 | E175: 298 | F175: 614-5 | G175: 대 | H175: 299.7 | I175: 1.7
A176: 172 | D176: -7 | E176: 262 | F176: 614-6 | G176: 대 | H176: 264.2 | I176: 2.2
A177: 173 | C177: 단독4-5 | D177: -1 | E177: 257 | F177: 615 | G177: 대 | H177: 257.2 | I177: 0.2
A178: 174 | D178: -2 | E178: 262 | F178: 615-1 | G178: 대 | H178: 263 | I178: 1
A179: 175 | D179: -3 | E179: 264 | F179: 615-2 | G179: 대 | H179: 264.6 | I179: 0.6
A180: 176 | D180: -4 | E180: 265 | F180: 615-3 | G180: 대 | H180: 265.9 | I180: 0.9
A181: 177 | D181: -5 | E181: 266 | F181: 615-4 | G181: 대 | H181: 267.3 | I181: 1.3
A182: 178 | D182: -6 | E182: 267 | F182: 615-5 | G182: 대 | H182: 268.2 | I182: 1.2
A183: 179 | D183: -7 | E183: 267 | F183: 615-6 | G183: 대 | H183: 268.5 | I183: 1.5
A184: 180 | D184: -8 | E184: 266 | F184: 615-7 | G184: 대 | H184: 267.3 | I184: 1.3
A185: 181 | D185: -9 | E185: 270 | F185: 615-8 | G185: 대 | H185: 271.3 | I185: 1.3
A186: 182 | C186: 단독4-4 | D186: -1 | E186: 280 | F186: 616 | G186: 대 | H186: 281.6 | I186: 1.6
A187: 183 | D187: -2 | E187: 261 | F187: 616-1 | G187: 대 | H187: 263.3 | I187: 2.3
A188: 184 | D188: -3 | E188: 264 | F188: 616-2 | G188: 대 | H188: 263.4 | I188: -0.6
A189: 185 | D189: -4 | E189: 252 | F189: 616-3 | G189: 대 | H189: 251 | I189: -1
A190: 186 | D190: -5 | E190: 242 | F190: 616-4 | G190: 대 | H190: 240 | I190: -2
A191: 187 | C191: 단독4-3 | D191: -1 | E191: 293 | F191: 617 | G191: 대 | H191: 293.9 | I191: 0.9
A192: 188 | D192: -2 | E192: 261 | F192: 617-1 | G192: 대 | H192: 261.4 | I192: 0.4
A193: 189 | D193: -3 | E193: 273 | F193: 617-2 | G193: 대 | H193: 272.9 | I193: -0.1
A194: 190 | D194: -4 | E194: 288 | F194: 617-3 | G194: 대 | H194: 287 | I194: -1
A195: 191 | D195: -5 | E195: 313 | F195: 617-4 | G195: 대 | H195: 312.3 | I195: -0.7
A196: 192 | D196: -6 | E196: 327 | F196: 617-5 | G196: 대 | H196: 328.2 | I196: 1.2
A197: 193 | C197: 단독4-2 | D197: -4 | E197: 263 | F197: 618 | G197: 대 | H197: 264 | I197: 1
A198: 194 | D198: -3 | E198: 263 | F198: 618-1 | G198: 대 | H198: 261.9 | I198: -1.1
A199: 195 | D199: -2 | E199: 263 | F199: 618-2 | G199: 대 | H199: 262 | I199: -1
A200: 196 | D200: -1 | E200: 263 | F200: 618-3 | G200: 대 | H200: 261.4 | I200: -1.6
A201: 197 | C201: 단독4-1 | D201: -4 | E201: 263 | F201: 619 | G201: 대 | H201: 263.1 | I201: 0.1
... 6 more rows
